[Event "58th Akiba Rubinstein C 2022"]
[Site "Polanica-Zdroj"]
[Date "2022.08.21"]
[Round "9.3"]
[White "Grubiak, Roman"]
[Black "fainberg, Boris"]
[Result "0-1"]
[ECO "A45"]
[WhiteElo "1637"]
[BlackElo "2015"]
[Annotator "NA RC"]
[PlyCount "86"]
[EventDate "2022.08.13"]
[EventCountry "POL"]
[SourceTitle "playchess.com"]
[Source "ChessBase"]
[SourceQuality "1"]
[TimeControl "40/5400+30:1800+30"]

1. d4 {[%emt 0:00:30]} Nf6 {[%emt 0:00:30]} 2. Bg5 {[%emt 0:00:12]} d5 {[%emt 0:04:08]} 3. Bxf6 {[%emt 0:01:26]} gxf6 {[%emt 0:07:07]} 4. e3 {[%emt 0:00:31]} c6 {[%emt 0:03:01]} 5. c3 {[%emt 0:03:32]} h5 {[%emt 0:00:58]} 6. Bd3 {[%emt 0:01:03]} Bg4 {[%emt 0:06:05]} 7. Ne2 {[%emt 0:00:43]} h4 {[%emt 0:05:01]} 8. h3 {[%emt 0:01:29]} Bc8 {[%emt 0:03:48]} 9. Nd2 {[%emt 0:02:13]} e5 {[%emt 0:05:39]} 10. Qb3 {[%emt 0:08:27]} Rg8 {[%emt 0:06:05]} 11. g3 {[%emt 0:06:17]} hxg3 {[%emt 0:01:13]} 12. Nxg3 {[%emt 0:00:28]} e4 {[%emt 0:01:08]} 13. Be2 {[%emt 0:00:51]} f5 {[%emt 0:05:53]} 14. c4 {[%emt 0:07:41]} Qb6 {[%emt 0:01:31]} 15. Qxb6 {[%emt 0:01:39]} axb6 {[%emt 0:00:01]} 16. cxd5 {[%emt 0:00:44]} cxd5 {[%emt 0:00:05]} 17. Bb5+ {[%emt 0:00:59]} Nc6 {[%emt 0:00:30]} 18. Ne2 {[%emt 0:01:50]} Ke7 {[%emt 0:03:03]} 19. Bxc6 {[%emt 0:06:12]} bxc6 {[%emt 0:00:27]} 20. a3 {[%emt 0:00:53]} Be6 {[%emt 0:05:30]} 21. Rc1 {[%emt 0:01:18]} Kd6 {[%emt 0:01:09]} 22. Nf4 {[%emt 0:01:00]} Bh6 {[%emt 0:00:38]} 23. Ke2 {[%emt 0:02:56]} Rgc8 {[%emt 0:09:10]} 24. f3 {[%emt 0:05:04]} c5 {[%emt 0:01:12]} 25. Nxe6 {[%emt 0:01:00]} fxe6 {[%emt 0:05:36]} 26. fxe4 {[%emt 0:01:34]} fxe4 {[%emt 0:09:24]} 27. Nb3 {[%emt 0:06:59]} Ra7 {[%emt 0:05:32]} 28. Rhg1 {[%emt 0:02:21]} Rf7 {[%emt 0:01:53]} 29. Rcf1 {[%emt 0:03:51]} Rcf8 {[%emt 0:00:36]} 30. Rxf7 {[%emt 0:03:02]} Rxf7 {[%emt 0:00:00]} 31. dxc5+ {[%emt 0:00:37]} bxc5 {[%emt 0:00:03]} 32. Nd2 {[%emt 0:00:43]} Rh7 {[%emt 0:01:45]} 33. Rh1 {[%emt 0:03:06]} Rg7 {[%emt 0:01:07]} 34. Rh2 {[%emt 0:01:32]} Ke5 {[%emt 0:00:28]} 35. h4 {[%emt 0:04:43]} Rg3 {[%emt 0:00:27]} 36. Nf1 {[%emt 0:00:38]} Rf3 {[%emt 0:01:04]} 37. a4 {[%emt 0:00:44]} d4 {[%emt 0:00:21]} 38. a5 {[%emt 0:01:38]} Rf7 {[%emt 0:01:27]} 39. Nd2 {[%emt 0:04:27]} Kd5 {[%emt 0:02:31]} 40. b3 {[%emt 0:03:25]} d3+ {[%emt 0:00:00]} 41. Ke1 {[%emt 0:01:44]} Bxe3 {[%emt 0:00:50]} 42. Nc4 {[%emt 0:01:23]} Bd4 {[%emt 0:01:01]} 43. Ra2 {[%emt 0:05:17]} Bc3+ {[%emt 0:00:46]} 0-1

[Event "58th Akiba Rubinstein C 2022"]
[Site "Polanica-Zdroj"]
[Date "2022.08.21"]
[Round "9.4"]
[White "Szylko, Waldemar"]
[Black "Pyka, Roman"]
[Result "0-1"]
[ECO "B20"]
[WhiteElo "1911"]
[BlackElo "1881"]
[Annotator "NA RC"]
[PlyCount "68"]
[EventDate "2022.08.13"]
[EventCountry "POL"]
[SourceTitle "playchess.com"]
[Source "ChessBase"]
[SourceQuality "1"]
[TimeControl "40/5400+30:1800+30"]

1. e4 {[%emt 0:00:06]} c5 {[%emt 0:00:15]} 2. Qe2 {[%emt 0:00:26]} e6 {[%emt 0:01:47]} 3. Nc3 {[%emt 0:00:16]} Nc6 {[%emt 0:00:40]} 4. g3 {[%emt 0:00:34]} Nd4 {[%emt 0:01:52]} 5. Qd1 {[%emt 0:00:15]} Ne7 {[%emt 0:01:29]} 6. Bg2 {[%emt 0:00:12]} Nec6 {[%emt 0:00:45]} 7. d3 {[%emt 0:01:43]} Nb4 {[%emt 0:00:58]} 8. Nce2 {[%emt 0:02:11]} Nbxc2+ {[%emt 0:00:30]} 9. Kf1 {[%emt 0:00:10]} Nxa1 {[%emt 0:00:12]} 10. Nxd4 {[%emt 0:00:14]} cxd4 {[%emt 0:00:38]} 11. Bd2 {[%emt 0:00:36]} Qc7 {[%emt 0:00:52]} 12. Qxa1 {[%emt 0:00:21]} Qc2 {[%emt 0:00:18]} 13. Ke2 {[%emt 0:00:18]} b6 {[%emt 0:01:12]} 14. Nf3 {[%emt 0:00:29]} Ba6 {[%emt 0:00:34]} 15. Ne1 {[%emt 0:00:15]} Qc7 {[%emt 0:02:48]} 16. f4 {[%emt 0:01:03]} d6 {[%emt 0:02:31]} 17. b4 {[%emt 0:01:54]} e5 {[%emt 0:00:38]} 18. Qb2 {[%emt 0:00:25]} Be7 {[%emt 0:00:52]} 19. b5 {[%emt 0:01:05]} Bc8 {[%emt 0:01:39]} 20. Nc2 {[%emt 0:00:35]} O-O {[%emt 0:04:35]} 21. Nb4 {[%emt 0:00:30]} Bb7 {[%emt 0:01:14]} 22. Bh3 Qd8 {[%emt 0:09:00]} 23. Rc1 {[%emt 0:03:14]} d5 {[%emt 0:04:27]} 24. Nc6 {[%emt 0:01:37]} Bxc6 {[%emt 0:00:27]} 25. bxc6 {[%emt 0:00:16]} Bc5 {[%emt 0:05:28]} 26. Bd7 {[%emt 0:04:36]} Qe7 {[%emt 0:04:42]} 27. f5 {[%emt 0:02:05]} dxe4 {[%emt 0:03:21]} 28. dxe4 {[%emt 0:00:30]} Ba3 {[%emt 0:00:56]} 29. Qb3 {[%emt 0:00:01]} Bxc1 {[%emt 0:00:42]} 30. Bxc1 {[%emt 0:00:15]} Rfd8 {[%emt 0:01:32]} 31. Ba3 {[%emt 0:00:34]} Qg5 {[%emt 0:00:17]} 32. f6 {[%emt 0:02:17]} Rxd7 {[%emt 0:01:59]} 33. cxd7 {[%emt 0:00:29]} Qg4+ {[%emt 0:00:12]} 34. Kd2 {[%emt 0:01:27]} Qxd7 {[%emt 0:00:12]} 0-1

[Event "58th Akiba Rubinstein C 2022"]
[Site "Polanica-Zdroj"]
[Date "2022.08.21"]
[Round "9.5"]
[White "Szydelko, Kazimierz"]
[Black "Zowada, Kazimierz"]
[Result "1/2-1/2"]
[ECO "E67"]
[WhiteElo "1661"]
[BlackElo "2041"]
[Annotator "NA RC"]
[PlyCount "134"]
[EventDate "2022.08.13"]
[EventCountry "POL"]
[SourceTitle "playchess.com"]
[Source "ChessBase"]
[SourceQuality "1"]
[TimeControl "40/5400+30:1800+30"]

1. d4 {[%emt 0:00:02]} g6 {[%emt 0:00:21]} 2. c4 {[%emt 0:00:19]} Bg7 {[%emt 0:00:08]} 3. Nf3 {[%emt 0:00:16]} Nf6 {[%emt 0:00:20]} 4. g3 {[%emt 0:00:09]} d6 {[%emt 0:01:22]} 5. Nc3 {[%emt 0:00:24]} Nbd7 {[%emt 0:00:14]} 6. Bg2 {[%emt 0:00:19]} O-O {[%emt 0:00:14]} 7. O-O {[%emt 0:00:14]} e5 {[%emt 0:00:29]} 8. Re1 {[%emt 0:03:30]} Re8 {[%emt 0:00:25]} 9. e4 {[%emt 0:00:40]} a5 {[%emt 0:00:44]} 10. b3 {[%emt 0:02:35]} exd4 {[%emt 0:01:58]} 11. Nxd4 {[%emt 0:00:31]} Nc5 {[%emt 0:00:10]} 12. Bb2 {[%emt 0:00:49]} h5 13. Qc2 {[%emt 0:02:50]} Ng4 {[%emt 0:07:41]} 14. Rad1 {[%emt 0:03:04]} Bd7 {[%emt 0:02:42]} 15. Nf3 Rb8 {[%emt 0:16:40]} 16. h3 {[%emt 0:15:42]} Ne5 {[%emt 0:04:41]} 17. Nxe5 {[%emt 0:00:59]} dxe5 {[%emt 0:01:16]} 18. Ba3 {[%emt 0:05:02]} Ne6 {[%emt 0:00:50]} 19. Ne2 {[%emt 0:02:04]} c5 20. Qd2 {[%emt 0:10:26]} Re7 {[%emt 0:08:14]} 21. Nc3 {[%emt 0:01:24]} f6 22. h4 {[%emt 0:03:45]} b6 {[%emt 0:02:42]} 23. Nd5 {[%emt 0:01:46]} Rf7 {[%emt 0:00:15]} 24. Bb2 {[%emt 0:01:59]} a4 {[%emt 0:01:35]} 25. f4 {[%emt 0:01:06]} Nd4 {[%emt 0:02:59]} 26. Bxd4 {[%emt 0:00:34]} cxd4 {[%emt 0:01:25]} 27. fxe5 {[%emt 0:09:04]} fxe5 {[%emt 0:00:41]} 28. Rf1 {[%emt 0:00:09]} Be6 {[%emt 0:00:56]} 29. Rxf7 {[%emt 0:00:37]} Bxf7 {[%emt 0:00:12]} 30. Rf1 {[%emt 0:00:56]} Bxd5 {[%emt 0:01:44]} 31. exd5 {[%emt 0:00:50]} axb3 {[%emt 0:00:14]} 32. axb3 {[%emt 0:00:08]} Qe7 {[%emt 0:00:56]} 33. Be4 {[%emt 0:00:18]} Kh7 {[%emt 0:03:30]} 34. Qd3 {[%emt 0:05:39]} Rf8 {[%emt 0:09:23]} 35. Bxg6+ {[%emt 0:01:51]} Kh6 {[%emt 0:01:35]} 36. Rxf8 {[%emt 0:04:15]} Qxf8 {[%emt 0:00:44]} 37. Qf5 {[%emt 0:00:32]} Qxf5 {[%emt 0:00:25]} 38. Bxf5 {[%emt 0:00:02]} Bf8 {[%emt 0:00:15]} 39. Kf2 {[%emt 0:00:43]} Kg7 {[%emt 0:01:09]} 40. Kf3 {[%emt 0:00:00]} Kf6 {[%emt 0:00:00]} 41. g4 {[%emt 0:03:39]} Bb4 {[%emt 0:02:47]} 42. Bd3 {[%emt 0:01:17]} hxg4+ {[%emt 0:02:18]} 43. Kxg4 {[%emt 0:02:35]} Bd6 {[%emt 0:01:07]} 44. h5 {[%emt 0:00:26]} Bf8 {[%emt 0:00:12]} 45. Bg6 {[%emt 0:01:18]} Bh6 {[%emt 0:03:45]} 46. Kf3 {[%emt 0:00:15]} Bf8 {[%emt 0:00:59]} 47. Ke4 {[%emt 0:00:19]} Bh6 {[%emt 0:00:49]} 48. Bh7 {[%emt 0:04:10]} Bf8 49. Bg8 {[%emt 0:03:31]} Kg7 {[%emt 0:01:48]} 50. Be6 {[%emt 0:00:16]} Kf6 {[%emt 0:00:06]} 51. Bg4 {[%emt 0:00:21]} Kg5 52. Be2 {[%emt 0:01:39]} Kf6 {[%emt 0:01:59]} 53. Bd3 {[%emt 0:00:43]} Bg7 54. Be2 {[%emt 0:02:19]} Bh6 {[%emt 0:04:11]} 55. d6 {[%emt 0:02:05]} Ke6 {[%emt 0:04:52]} 56. d7 {[%emt 0:02:04]} Kxd7 {[%emt 0:00:18]} 57. Kxe5 {[%emt 0:00:11]} Bg7+ {[%emt 0:00:16]} 58. Kf5 {[%emt 0:00:14]} Ke7 {[%emt 0:00:33]} 59. Kg6 {[%emt 0:01:23]} Kf8 {[%emt 0:00:07]} 60. h6 {[%emt 0:02:44]} Bh8 {[%emt 0:00:35]} 61. Bd3 {[%emt 0:00:45]} Be5 {[%emt 0:00:45]} 62. Kf5 {[%emt 0:00:20]} Bh8 {[%emt 0:01:26]} 63. Ke6 {[%emt 0:00:28]} Kg8 {[%emt 0:01:17]} 64. b4 {[%emt 0:00:25]} Kf8 {[%emt 0:00:17]} 65. Kd5 {[%emt 0:03:22]} Bf6 {[%emt 0:00:16]} 66. Kc6 {[%emt 0:07:10]} Be7 {[%emt 0:01:14]} 67. Kb5 {[%emt 0:01:16]} Kg8 {[%emt 0:00:21]} 1/2-1/2

[Event "58th Akiba Rubinstein C 2022"]
[Site "Polanica-Zdroj"]
[Date "2022.08.21"]
[Round "9.6"]
[White "Kwiecien, Zbigniew"]
[Black "Kruczynski, Marek"]
[Result "1-0"]
[ECO "C41"]
[WhiteElo "1937"]
[BlackElo "1651"]
[Annotator "NA RC"]
[PlyCount "61"]
[EventDate "2022.08.13"]
[EventCountry "POL"]
[SourceTitle "playchess.com"]
[Source "ChessBase"]
[SourceQuality "1"]
[TimeControl "40/5400+30:1800+30"]

1. e4 {[%emt 0:00:08]} e5 {[%emt 0:00:38]} 2. Nf3 {[%emt 0:00:12]} d6 {[%emt 0:00:12]} 3. Bc4 {[%emt 0:00:25]} Be7 {[%emt 0:01:09]} 4. d3 {[%emt 0:00:09]} Nf6 {[%emt 0:00:51]} 5. h3 {[%emt 0:00:40]} c6 {[%emt 0:00:59]} 6. O-O {[%emt 0:00:49]} h6 {[%emt 0:01:06]} 7. a4 {[%emt 0:00:24]} Nbd7 {[%emt 0:00:59]} 8. Nc3 {[%emt 0:01:23]} Nf8 {[%emt 0:00:28]} 9. a5 {[%emt 0:05:47]} Be6 {[%emt 0:02:52]} 10. Nd2 {[%emt 0:03:21]} g5 {[%emt 0:04:53]} 11. Bxe6 {[%emt 0:03:12]} Nxe6 {[%emt 0:00:39]} 12. g3 {[%emt 0:00:13]} Qd7 {[%emt 0:03:32]} 13. Kg2 {[%emt 0:00:30]} O-O-O {[%emt 0:00:50]} 14. Nc4 {[%emt 0:02:18]} Kb8 {[%emt 0:03:22]} 15. Be3 {[%emt 0:00:56]} Rdg8 {[%emt 0:02:06]} 16. Nb6 {[%emt 0:05:19]} Qd8 {[%emt 0:12:51]} 17. Nc4 {[%emt 0:12:40]} Qd7 {[%emt 0:03:14]} 18. Nb6 {[%emt 0:01:16]} Qd8 {[%emt 0:00:16]} 19. Nc4 {[%emt 0:01:00]} h5 20. b4 {[%emt 0:01:32]} Nf4+ {[%emt 0:15:24]} 21. Bxf4 {[%emt 0:11:22]} gxf4 {[%emt 0:00:55]} 22. b5 {[%emt 0:00:39]} c5 {[%emt 0:08:32]} 23. Na4 {[%emt 0:03:28]} Nd7 {[%emt 0:00:22]} 24. Qb1 {[%emt 0:01:28]} Bh4 {[%emt 0:01:37]} 25. Nxd6 {[%emt 0:00:27]} Bxg3 {[%emt 0:00:44]} 26. Nf5 {[%emt 0:01:10]} Bh4+ {[%emt 0:04:34]} 27. Kf3 {[%emt 0:01:29]} Rg6 {[%emt 0:01:24]} 28. Qb3 {[%emt 0:01:00]} Rhg8 {[%emt 0:07:53]} 29. Qd5 {[%emt 0:01:14]} Rh8 30. Qb3 Rhg8 31. Qd5 1-0

[Event "58th Akiba Rubinstein C 2022"]
[Site "Polanica-Zdroj"]
[Date "2022.08.21"]
[Round "9.7"]
[White "Fikus, Zygmunt"]
[Black "Wasylkiewicz, Andrzej"]
[Result "1-0"]
[ECO "A95"]
[WhiteElo "1891"]
[BlackElo "1691"]
[Annotator "NA RC"]
[PlyCount "59"]
[EventDate "2022.08.13"]
[EventCountry "POL"]
[SourceTitle "playchess.com"]
[Source "ChessBase"]
[SourceQuality "1"]
[TimeControl "40/5400+30:1800+30"]

1. Nf3 {[%emt 0:00:17]} d5 {[%emt 0:00:46]} 2. d4 {[%emt 0:00:25]} f5 {[%emt 0:01:54]} 3. g3 {[%emt 0:03:12]} Nf6 {[%emt 0:00:30]} 4. Bg2 {[%emt 0:00:17]} e6 {[%emt 0:00:13]} 5. O-O {[%emt 0:00:35]} c6 {[%emt 0:00:34]} 6. c4 {[%emt 0:00:19]} Be7 {[%emt 0:01:27]} 7. Nc3 {[%emt 0:00:24]} O-O {[%emt 0:01:31]} 8. b3 {[%emt 0:04:48]} Bd7 {[%emt 0:03:38]} 9. Ne5 {[%emt 0:04:58]} Be8 {[%emt 0:00:10]} 10. f3 {[%emt 0:03:49]} Bh5 {[%emt 0:01:23]} 11. Qc2 {[%emt 0:02:37]} dxc4 {[%emt 0:07:57]} 12. Nxc4 {[%emt 0:00:45]} Qxd4+ {[%emt 0:01:16]} 13. Be3 {[%emt 0:00:23]} Qd8 {[%emt 0:00:53]} 14. Rad1 {[%emt 0:01:56]} Qc8 {[%emt 0:03:10]} 15. Bf2 {[%emt 0:06:36]} Nbd7 {[%emt 0:04:45]} 16. Rd2 {[%emt 0:05:20]} Qc7 {[%emt 0:07:21]} 17. e4 {[%emt 0:13:04]} Bg6 {[%emt 0:02:39]} 18. Ne3 {[%emt 0:06:28]} Bb4 {[%emt 0:04:15]} 19. exf5 {[%emt 0:05:27]} Bxc3 {[%emt 0:03:05]} 20. Qxc3 {[%emt 0:00:15]} exf5 {[%emt 0:01:07]} 21. Rfd1 {[%emt 0:04:55]} Nb6 {[%emt 0:05:00]} 22. Bh3 {[%emt 0:05:42]} f4 {[%emt 0:01:44]} 23. Ng4 {[%emt 0:00:44]} Nfd7 {[%emt 0:02:44]} 24. Rxd7 {[%emt 0:01:17]} Nxd7 {[%emt 0:03:51]} 25. Rxd7 {[%emt 0:00:33]} Qxd7 {[%emt 0:04:21]} 26. Nh6+ {[%emt 0:02:17]} gxh6 {[%emt 0:00:14]} 27. Bxd7 {[%emt 0:00:13]} Bf7 {[%emt 0:03:31]} 28. Qe5 {[%emt 0:00:50]} Bg6 29. Qc3 Bf7 30. Qe5 1-0

[Event "58th Akiba Rubinstein C 2022"]
[Site "Polanica-Zdroj"]
[Date "2022.08.21"]
[Round "9.8"]
[White "Krupa, Jerzy"]
[Black "Gromada, Andrzej"]
[Result "0-1"]
[ECO "C05"]
[WhiteElo "1771"]
[BlackElo "1680"]
[Annotator "NA RC"]
[PlyCount "94"]
[EventDate "2022.08.13"]
[EventCountry "POL"]
[SourceTitle "playchess.com"]
[Source "ChessBase"]
[SourceQuality "1"]
[TimeControl "40/5400+30:1800+30"]

1. e4 {[%emt 0:00:02]} e6 {[%emt 0:00:11]} 2. d4 {[%emt 0:00:21]} d5 {[%emt 0:00:07]} 3. Nd2 {[%emt 0:00:23]} Nf6 {[%emt 0:00:17]} 4. e5 {[%emt 0:00:17]} Nfd7 {[%emt 0:00:03]} 5. Bd3 {[%emt 0:00:20]} c5 {[%emt 0:00:08]} 6. c3 {[%emt 0:00:06]} Nc6 {[%emt 0:00:06]} 7. Ngf3 {[%emt 0:00:18]} Qb6 {[%emt 0:00:42]} 8. O-O {[%emt 0:00:23]} cxd4 {[%emt 0:00:32]} 9. cxd4 {[%emt 0:00:10]} Nxd4 {[%emt 0:00:35]} 10. Nxd4 {[%emt 0:00:10]} Qxd4 {[%emt 0:00:06]} 11. Nf3 {[%emt 0:00:05]} Qb6 {[%emt 0:00:45]} 12. Qa4 {[%emt 0:00:12]} Qb4 {[%emt 0:01:22]} 13. Qc2 {[%emt 0:00:54]} Qc5 {[%emt 0:01:40]} 14. Qe2 {[%emt 0:02:43]} Qc7 {[%emt 0:06:19]} 15. Bd2 Be7 {[%emt 0:07:02]} 16. Rac1 {[%emt 0:09:19]} Qd8 {[%emt 0:00:08]} 17. Nd4 {[%emt 0:04:32]} O-O {[%emt 0:11:17]} 18. Rfe1 {[%emt 0:11:14]} g6 {[%emt 0:15:47]} 19. Bh6 {[%emt 0:04:53]} Bg5 {[%emt 0:01:22]} 20. Bxg5 {[%emt 0:21:58]} Qxg5 {[%emt 0:00:05]} 21. Rc7 {[%emt 0:01:19]} b6 {[%emt 0:04:14]} 22. b4 {[%emt 0:00:59]} a5 {[%emt 0:01:37]} 23. Bb5 {[%emt 0:00:51]} Nb8 {[%emt 0:01:38]} 24. Rec1 {[%emt 0:12:13]} Ba6 {[%emt 0:01:24]} 25. bxa5 {[%emt 0:06:54]} Bxb5 {[%emt 0:05:35]} 26. Qxb5 {[%emt 0:02:10]} Rxa5 {[%emt 0:01:15]} 27. Qxb6 {[%emt 0:00:14]} Rxa2 {[%emt 0:00:12]} 28. Nf3 {[%emt 0:08:41]} Qf4 {[%emt 0:02:20]} 29. Qb3 {[%emt 0:00:54]} Qa4 {[%emt 0:02:01]} 30. Qe3 {[%emt 0:00:05]} Ra1 {[%emt 0:02:16]} 31. h3 {[%emt 0:01:15]} Kg7 {[%emt 0:03:48]} 32. Kh2 {[%emt 0:02:59]} Rxc1 {[%emt 0:00:43]} 33. Qxc1 {[%emt 0:00:37]} h6 {[%emt 0:03:20]} 34. Qe3 {[%emt 0:00:37]} Nc6 {[%emt 0:05:35]} 35. Qc1 {[%emt 0:01:21]} Nd4 {[%emt 0:00:43]} 36. Qf4 {[%emt 0:02:37]} Nxf3+ {[%emt 0:11:13]} 37. Qxf3 {[%emt 0:00:02]} Kg8 {[%emt 0:00:08]} 38. Qf6 {[%emt 0:01:17]} Qe4 {[%emt 0:00:51]} 39. g4 g5 {[%emt 0:03:36]} 40. Kg3 {[%emt 0:00:00]} Qh7 {[%emt 0:00:00]} 41. h4 {[%emt 0:04:21]} Qg7 {[%emt 0:02:09]} 42. hxg5 {[%emt 0:04:01]} hxg5 {[%emt 0:00:37]} 43. f4 {[%emt 0:00:55]} Qxf6 {[%emt 0:02:26]} 44. exf6 {[%emt 0:00:12]} gxf4+ {[%emt 0:00:08]} 45. Kxf4 {[%emt 0:00:14]} Rd8 {[%emt 0:01:29]} 46. Kg3 Rf8 47. Kf4 Rd8 0-1

[Event "58th Akiba Rubinstein C 2022"]
[Site "Polanica-Zdroj"]
[Date "2022.08.21"]
[Round "9.9"]
[White "Poniewierski, Piotr"]
[Black "Tchorzewski, Kazimierz"]
[Result "1-0"]
[ECO "A53"]
[WhiteElo "1747"]
[BlackElo "1670"]
[Annotator "NA RC"]
[PlyCount "90"]
[EventDate "2022.08.13"]
[EventCountry "POL"]
[SourceTitle "playchess.com"]
[Source "ChessBase"]
[SourceQuality "1"]
[TimeControl "40/5400+30:1800+30"]

1. c4 {[%emt 0:00:07]} d6 {[%emt 0:01:14]} 2. d4 {[%emt 0:00:15]} Nf6 {[%emt 0:00:31]} 3. Nf3 {[%emt 0:00:16]} e6 {[%emt 0:02:22]} 4. g3 {[%emt 0:00:57]} b6 {[%emt 0:00:22]} 5. Bg2 {[%emt 0:00:26]} Bb7 {[%emt 0:00:05]} 6. Nc3 {[%emt 0:00:48]} Be7 {[%emt 0:00:12]} 7. O-O {[%emt 0:01:37]} Nbd7 {[%emt 0:00:27]} 8. Qc2 {[%emt 0:01:10]} h5 {[%emt 0:04:42]} 9. Bg5 {[%emt 0:06:41]} Ng4 {[%emt 0:00:20]} 10. Bxe7 {[%emt 0:00:43]} Qxe7 {[%emt 0:00:06]} 11. e4 {[%emt 0:01:43]} h4 12. h3 {[%emt 0:05:38]} Ngf6 {[%emt 0:03:47]} 13. g4 {[%emt 0:03:26]} Nxg4 {[%emt 0:00:55]} 14. hxg4 {[%emt 0:00:15]} h3 {[%emt 0:00:05]} 15. Bh1 {[%emt 0:01:15]} h2+ {[%emt 0:00:53]} 16. Nxh2 {[%emt 0:06:22]} O-O-O {[%emt 0:01:17]} 17. f3 {[%emt 0:07:29]} f5 {[%emt 0:00:07]} 18. exf5 {[%emt 0:02:46]} exf5 {[%emt 0:00:04]} 19. Nd5 {[%emt 0:09:08]} Qh4 {[%emt 0:01:44]} 20. Qf2 {[%emt 0:02:10]} Qg5 {[%emt 0:00:40]} 21. f4 {[%emt 0:01:20]} Qh6 {[%emt 0:01:22]} 22. Ne7+ {[%emt 0:04:32]} Kb8 {[%emt 0:00:10]} 23. Bxb7 {[%emt 0:02:20]} Kxb7 {[%emt 0:00:02]} 24. Qg2+ {[%emt 0:01:09]} d5 {[%emt 0:00:10]} 25. Nxf5 {[%emt 0:02:04]} Qf6 {[%emt 0:00:41]} 26. Rad1 {[%emt 0:05:14]} g6 {[%emt 0:01:49]} 27. Ne3 Kb8 {[%emt 0:01:47]} 28. Nxd5 {[%emt 0:01:15]} Qd6 {[%emt 0:00:23]} 29. Rfe1 {[%emt 0:04:29]} Rh7 {[%emt 0:00:41]} 30. Rd2 {[%emt 0:09:23]} Rdh8 {[%emt 0:00:49]} 31. Qe4 {[%emt 0:03:16]} c6 {[%emt 0:01:35]} 32. Ne3 {[%emt 0:00:32]} g5 {[%emt 0:02:09]} 33. Nf5 {[%emt 0:03:20]} Qc7 {[%emt 0:02:49]} 34. d5 {[%emt 0:02:16]} gxf4 35. d6 {[%emt 0:02:54]} Qb7 {[%emt 0:04:01]} 36. Qe8+ {[%emt 0:01:28]} Qc8 {[%emt 0:01:08]} 37. Qxc8+ {[%emt 0:00:08]} Kxc8 {[%emt 0:00:07]} 38. Rf1 {[%emt 0:00:47]} f3 {[%emt 0:01:41]} 39. Nxf3 {[%emt 0:00:42]} Nf6 {[%emt 0:00:23]} 40. Rh2 {[%emt 0:00:00]} Nxg4 {[%emt 0:00:00]} 41. Rxh7 {[%emt 0:03:22]} Rxh7 {[%emt 0:00:41]} 42. Re1 {[%emt 0:00:55]} Rf7 {[%emt 0:01:13]} 43. Re8+ {[%emt 0:00:38]} Kd7 {[%emt 0:01:03]} 44. Re7+ {[%emt 0:00:09]} Rxe7 {[%emt 0:00:24]} 45. dxe7 {[%emt 0:00:08]} Nf6 1-0

[Event "58th Akiba Rubinstein C 2022"]
[Site "Polanica-Zdroj"]
[Date "2022.08.21"]
[Round "9.10"]
[White "Bukowska, Katarzyna"]
[Black "Tomalak, Stanislaw"]
[Result "1/2-1/2"]
[ECO "C77"]
[WhiteElo "1842"]
[BlackElo "1554"]
[Annotator "NA RC"]
[PlyCount "102"]
[EventDate "2022.08.13"]
[EventCountry "POL"]
[SourceTitle "playchess.com"]
[Source "ChessBase"]
[SourceQuality "1"]
[TimeControl "40/5400+30:1800+30"]

1. e4 {[%emt 0:00:03]} e5 {[%emt 0:02:47]} 2. Nf3 {[%emt 0:00:11]} Nc6 {[%emt 0:00:22]} 3. Bb5 {[%emt 0:00:09]} a6 {[%emt 0:00:28]} 4. Ba4 {[%emt 0:00:07]} Nf6 {[%emt 0:00:29]} 5. d3 {[%emt 0:00:14]} b5 {[%emt 0:01:01]} 6. Bb3 {[%emt 0:00:06]} Be7 {[%emt 0:00:10]} 7. O-O {[%emt 0:00:22]} d6 {[%emt 0:00:26]} 8. a3 {[%emt 0:00:19]} Bg4 {[%emt 0:03:38]} 9. Be3 {[%emt 0:02:56]} Na5 {[%emt 0:06:28]} 10. Ba2 {[%emt 0:00:33]} c5 {[%emt 0:00:13]} 11. Nc3 {[%emt 0:01:00]} Nc6 {[%emt 0:09:41]} 12. Nd5 {[%emt 0:05:48]} Nd4 {[%emt 0:00:34]} 13. Bxd4 {[%emt 0:03:32]} cxd4 {[%emt 0:00:58]} 14. c4 dxc3 {[%emt 0:01:11]} 15. Nxc3 {[%emt 0:10:00]} O-O {[%emt 0:00:52]} 16. Nd5 {[%emt 0:01:02]} Rc8 {[%emt 0:02:26]} 17. Ne3 {[%emt 0:02:14]} Be6 {[%emt 0:03:37]} 18. Bxe6 {[%emt 0:03:24]} fxe6 {[%emt 0:00:45]} 19. Qb3 {[%emt 0:00:45]} Qd7 {[%emt 0:01:03]} 20. Rac1 {[%emt 0:03:41]} h6 {[%emt 0:04:51]} 21. h3 {[%emt 0:01:15]} Kf7 22. Rfe1 {[%emt 0:12:03]} Rxc1 {[%emt 0:05:55]} 23. Rxc1 {[%emt 0:00:03]} Rc8 {[%emt 0:00:27]} 24. Rc2 {[%emt 0:01:05]} Rxc2 {[%emt 0:00:54]} 25. Qxc2 {[%emt 0:00:57]} Bd8 {[%emt 0:00:33]} 26. Ng4 {[%emt 0:11:47]} Nxg4 {[%emt 0:01:05]} 27. hxg4 {[%emt 0:00:04]} Qc7 28. Qd2 {[%emt 0:01:31]} Qc6 {[%emt 0:06:23]} 29. g3 {[%emt 0:05:45]} g5 {[%emt 0:00:57]} 30. Kg2 {[%emt 0:01:10]} Bb6 {[%emt 0:00:23]} 31. Kg1 {[%emt 0:07:54]} Kf6 {[%emt 0:00:34]} 32. Ne1 {[%emt 0:03:17]} a5 {[%emt 0:01:40]} 33. b3 {[%emt 0:02:02]} Qc5 {[%emt 0:00:58]} 34. a4 {[%emt 0:01:41]} b4 {[%emt 0:00:53]} 35. Qc2 {[%emt 0:00:38]} d5 {[%emt 0:09:08]} 36. Qxc5 {[%emt 0:00:52]} Bxc5 {[%emt 0:00:35]} 37. Kf1 {[%emt 0:01:33]} Ke7 {[%emt 0:01:08]} 38. Ke2 {[%emt 0:01:41]} Bd4 {[%emt 0:02:28]} 39. Ng2 {[%emt 0:03:44]} Kd6 {[%emt 0:00:28]} 40. Ne3 {[%emt 0:00:00]} Bc5 {[%emt 0:00:00]} 41. exd5 {[%emt 0:13:44]} Bxe3 {[%emt 0:08:57]} 42. Kxe3 {[%emt 0:13:47]} exd5 {[%emt 0:02:55]} 43. f4 {[%emt 0:00:14]} gxf4+ {[%emt 0:03:18]} 44. gxf4 {[%emt 0:00:08]} exf4+ {[%emt 0:00:48]} 45. Kxf4 {[%emt 0:00:08]} Ke6 {[%emt 0:00:17]} 46. d4 {[%emt 0:01:18]} Kf6 {[%emt 0:00:21]} 47. Kf3 {[%emt 0:00:22]} Kg5 {[%emt 0:01:21]} 48. Kg3 {[%emt 0:00:10]} Kf6 {[%emt 0:01:27]} 49. Kf3 Kg5 50. Kg3 Kf6 51. Kf4 Ke6 1/2-1/2